bitfinex-derivatives/quotes_SOLF0:USTF0_20250311
["timestamp","ask_amount","ask_price","bid_price","bid_amount"]
[1741669805756,0.05991954,121.83,121.81,0.06112772]
[1741669806252,8.27061954,121.83,121.81,0.06112772]
[1741669806855,0.05991954,121.83,121.81,0.06112772]
[1741669807453,8.2111,121.82,121.81,0.06112772]
[1741669808957,0.05991954,121.83,121.81,0.06112772]
[1741669809153,8.27071954,121.83,121.81,0.06112772]
[1741669809558,8.2111,121.82,121.81,0.06112772]
[1741669809854,0.05991954,121.83,121.81,0.06112772]
[1741669811155,0.05991954,121.83,121.81,8.27242772]
[1741669812259,0.05991954,121.83,121.81,0.06112772]
[1741669812858,0.05991954,121.83,121.82,55.04490149]
[1741669813951,45.41846638,121.96,121.82,320.15380149]
[1741669814256,45.41846638,121.96,121.83,1.46532783]
[1741669814257,17.61120149,121.95,121.83,1.46532783]
[1741669814556,45.41846638,121.96,121.91,13.59380149]
[1741669814758,45.41846638,121.96,121.92,33.54]
[1741669815151,0.05760621,121.95,121.93,0.05215909]
[1741669815958,13.6514077,121.95,121.87,13.59380149]
[1741669816158,33.58,121.94,121.85,13.59380149]
[1741669816358,2.181,121.93,121.85,13.59380149]
[1741669816549,8.2046,121.92,121.85,13.59380149]
[1741669816753,2.1034,121.92,121.83,55.38410149]
[1741669816957,2.1034,121.92,121.83,47.17380149]
[1741669817157,0.06303859,121.89,121.86,0.05532554]
[1741669818159,8.2075,121.88,121.86,0.05532554]
[1741669818460,0.06303859,121.89,121.86,0.05532554]
[1741669818657,0.06303859,121.89,121.83,33.58]
[1741669818958,8.2072,121.88,121.83,33.58]
[1741669819252,0.06303859,121.89,121.82,270.86]
[1741669819457,8.2072,121.88,121.82,270.86]
[1741669819651,8.2072,121.88,121.81,47.17380149]
[1741669819652,47.19380149,121.91,121.81,13.59380149]
[1741669819859,0.06141676,121.86,121.84,0.06236078]
[1741669820056,2.1519,121.87,121.84,0.06236078]
[1741669820260,0.05366212,121.86,121.84,0.06236078]
[1741669821362,0.05366212,121.86,121.77,284.35380149]
[1741669821559,17.75160149,121.87,121.78,33.6]
[1741669822056,13.59380149,121.85,121.78,33.6]
[1741669822259,33.58,121.84,121.78,33.6]
[1741669822558,8.212,121.81,121.8,0.05765314]
[1741669822950,0.05604669,121.83,121.8,0.05765314]
[1741669823148,0.05604669,121.83,121.75,47.37380149]
[1741669823350,8.2123,121.81,121.75,47.37380149]
[1741669823546,13.59380149,121.83,121.75,47.37380149]
[1741669823756,18.16,121.8,121.75,47.37380149]
[1741669823954,18.16,121.8,121.75,13.59380149]
[1741669824154,18.16,121.8,121.74,33.8]
[1741669824353,0.06320078,121.79,121.76,0.05501419]
[1741669826158,0.06320078,121.79,121.77,33.78]
[1741669827057,295.45,121.9,121.77,33.78]
[1741669827058,33.84,121.94,121.77,49.83380149]
[1741669827258,4.2335,121.9,121.82,13.59380149]
[1741669827564,8.2071,121.88,121.83,33.86]
[1741669827961,4.2335,121.9,121.83,33.86]
[1741669828160,0.05627003,121.87,121.84,0.05296599]
[1741669828560,0.05627003,121.87,121.84,13.64676748]
[1741669829161,8.2053,121.91,121.85,8.2086]
[1741669829361,8.2053,121.91,121.86,33.84]
[1741669829560,4.5547,121.93,121.86,47.43380149]
[1741669829960,12.7589,121.93,121.87,8.2075]
[1741669830361,0.05190644,121.91,121.89,0.05330978]
[1741669830667,45.41846638,122.01,121.9,33.8]
[1741669830966,2.2914,121.98,121.9,33.8]
[1741669831567,0.05652064,121.95,121.93,0.05639041]
[1741669833364,0.05652064,121.95,121.93,8.25999041]
[1741669833568,0.05652064,121.95,121.93,41.93999041]
[1741669833765,0.05652064,121.95,121.93,33.73639041]
[1741669834559,0.05652064,121.95,121.93,41.93949041]
[1741669835266,0.05652064,121.95,121.93,33.73639041]
[1741669835463,21.70453498,122.05,121.93,33.73639041]
[1741669835658,21.70453498,122.05,121.93,33.68]
[1741669835659,2.1195,122.04,121.93,33.68]
[1741669835871,8.1981,122.02,121.93,33.68]
[1741669836069,2.1195,122.04,121.93,33.68]
[1741669836763,0.06259647,122.0,121.97,0.05345416]
[1741669836960,8.26199647,122.0,121.97,0.05345416]
[1741669837165,0.06259647,122.0,121.97,0.05345416]
[1741669837565,8.2003,121.98,121.97,0.05345416]
[1741669839668,0.06259647,122.0,121.97,0.05345416]
[1741669840764,8.2003,121.98,121.97,0.05345416]
[1741669841271,0.06259647,122.0,121.97,0.05345416]
[1741669841468,8.26179647,122.0,121.97,0.05345416]
[1741669841773,0.06259647,122.0,121.97,0.05345416]
[1741669841970,8.26179647,122.0,121.97,0.05345416]
[1741669842372,0.06259647,122.0,121.97,0.05345416]
[1741669843469,0.06259647,122.0,121.97,8.25445416]
[1741669843671,0.06259647,122.0,121.97,0.05345416]
[1741669843871,8.26159647,122.0,121.97,0.05345416]
[1741669844168,0.06259647,122.0,121.97,0.05345416]
[1741669844377,205.30485075,122.15,121.98,21.70453498]
[1741669844567,2.0808,122.14,122.01,21.70453498]
[1741669844769,4.3126,122.14,122.02,270.56]
[1741669844966,4.3126,122.14,122.03,36.06]
[1741669845266,11.30485075,122.14,122.06,21.70453498]
[1741669845465,8.284e-05,122.1,122.09,8.1929]
[1741669845672,222.29092613,122.17,122.09,212.70453498]
[1741669845865,278.62003267,122.18,122.15,21.70453498]
[1741669846070,127.59151463,122.18,122.17,8.1876]
[1741669846369,2.81281817,122.18,122.17,36.36]
[1741669846674,2.81281817,122.18,122.1,272.19800163]
[1741669846865,2.81281817,122.18,122.16,0.05727174]
[1741669847069,2.81281817,122.18,122.11,44.6316]
[1741669847272,2.81281817,122.18,122.16,0.0533427]
[1741669847578,2.81281817,122.18,122.16,0.05191769]
[1741669847880,24.51735315,122.18,122.11,36.44]
[1741669848179,21.70453498,122.15,122.1,38.33800163]
[1741669848366,23.94413498,122.18,122.1,38.33800163]
[1741669848766,4.4806,122.21,122.1,38.33800163]
[1741669848968,26.18513498,122.21,122.1,38.33800163]
[1741669849265,0.05191769,122.17,122.14,0.05733572]
[1741669849465,0.05191769,122.17,122.15,36.82]
[1741669850679,0.00351769,122.17,122.15,36.82]
[1741669851377,8.1823,122.25,122.16,95.26656385]
[1741669851769,21.70453498,122.27,122.16,95.26656385]
[1741669852373,8.1835,122.24,122.16,95.26656385]
[1741669852573,8.1835,122.24,122.2,0.05352126]
[1741669852773,21.70453498,122.27,122.21,36.68]
[1741669852979,8.1842,122.22,122.21,36.68]
[1741669853274,21.70453498,122.27,122.21,36.68]
[1741669853874,21.70453498,122.27,122.23,190.97845246]
[1741669854078,21.70453498,122.25,122.21,365.20604354]
[1741669854278,21.70453498,122.25,122.21,352.73714354]
[1741669854582,8.1842,122.22,122.21,352.73714354]
[1741669854774,36.7,122.24,122.2,86.31778469]
[1741669855472,0.05636871,122.23,122.21,0.0536434]
[1741669855872,0.05636871,122.23,122.21,4.34e-05]
[1741669856177,8.1842,122.22,122.21,4.34e-05]
[1741669857173,0.05636871,122.23,122.21,4.34e-05]
[1741669857378,0.05636871,122.23,122.21,36.8200434]
[1741669858382,8.24036871,122.23,122.21,36.8200434]
[1741669858682,0.05636871,122.23,122.21,36.8200434]
[1741669858881,8.1842,122.22,122.21,36.8200434]
[1741669859078,8.1842,122.22,122.21,4.34e-05]
[1741669861175,8.1886,122.16,122.13,2.129]
[1741669861381,8.1886,122.16,122.14,36.8]
[1741669861980,8.1896,122.14,122.12,2.2552]
[1741669862184,21.70453498,122.19,122.12,2.2552]
[1741669862387,0.05284912,122.14,122.12,2.31790088]
[1741669862584,21.70453498,122.19,122.12,2.31790088]
[1741669862782,0.05997929,122.14,122.12,2.31790088]
[1741669862981,8.19,122.14,122.12,2.31790088]
[1741669863183,0.05887337,122.14,122.12,0.06270088]
[1741669863983,8.1902,122.13,122.12,0.06270088]
[1741669864978,8.1902,122.13,122.08,36.84]
[1741669864979,21.70453498,122.13,122.08,36.84]
[1741669865184,23.91933498,122.13,122.08,36.84]
[1741669865384,21.70453498,122.1,122.01,36.88]
[1741669865584,58.58453498,122.1,122.01,36.88]
[1741669865984,21.70453498,122.07,122.01,36.88]
[1741669866180,8.1956,122.05,122.04,0.05627214]
[1741669866386,21.76204846,122.07,121.98,36.88]
[1741669866586,2.2568,122.06,121.98,36.88]
[1741669867490,8.197,122.03,121.98,36.88]
[1741669867682,0.05438176,122.03,122.01,0.0621075]
[1741669868685,307.0,122.17,122.01,39.3221075]
[1741669868890,2.3273,122.14,122.05,8.1951]
[1741669869094,2.3273,122.14,122.06,36.82]
[1741669869587,8.1914,122.12,122.06,36.82]
[1741669869793,0.06193903,122.11,122.09,0.05930773]
[1741669870193,8.25403903,122.11,122.09,0.05930773]
[1741669870385,0.06193903,122.11,122.06,36.82]
[1741669871486,0.06193903,122.11,122.07,0.05339226]
[1741669873390,0.06193903,122.11,122.08,8.1931]
[1741669873695,0.06193903,122.11,122.07,0.05339226]
[1741669873887,0.06193903,122.11,122.08,8.1935]
[1741669874088,0.06193903,122.11,122.07,0.05339226]
[1741669874394,291.94453498,122.22,122.14,8.1895]
[1741669874594,21.70453498,122.22,122.09,21.70453498]
[1741669874795,21.70453498,122.19,122.1,36.74]
[1741669874995,21.70453498,122.22,122.1,58.44453498]
[1741669875287,26.12813498,122.25,122.11,272.5695]
[1741669875488,0.00098899,122.17,122.15,0.05854713]
[1741669875697,2.2938,122.24,122.16,36.86]
[1741669875886,2.2938,122.24,122.18,8.1868]
[1741669876284,2.2938,122.24,122.16,36.86]
[1741669876490,2.2938,122.24,122.2,8.185]
[1741669876690,274.15886749,122.28,122.2,8.185]
[1741669876691,35.09846749,122.28,122.2,36.88]
[1741669876897,0.05977311,122.23,122.21,0.05699829]
[1741669877099,0.05977311,122.23,122.22,8.184]
[1741669877299,0.05735985,122.23,122.22,8.184]
[1741669877496,0.05735985,122.23,122.21,0.05699829]
[1741669878199,35.09846749,122.31,122.21,2.51699829]
[1741669878504,41.62586749,122.34,122.22,4.4399]
[1741669878998,8.1777,122.32,122.22,4.4399]
[1741669879201,37.39226749,122.34,122.22,4.4399]
[1741669879393,0.05562271,122.28,122.26,0.05834041]
[1741669879590,43.27406749,122.35,122.27,36.9]
[1741669879789,35.09846749,122.35,122.28,8.18]
[1741669880194,35.09846749,122.35,122.31,8.1782]
[1741669880396,35.09846749,122.35,122.27,36.9]
[1741669880596,194.0,122.42,122.28,36.82]
[1741669880795,26.52,122.34,122.3,0.06236395]
[1741669880991,26.52,122.34,122.31,36.88]
[1741669881196,26.52,122.34,122.31,36.93260463]
[1741669881395,35.09846749,122.32,122.31,0.05260463]
[1741669881598,26.52,122.34,122.31,0.05260463]
[1741669882094,35.09846749,122.33,122.31,0.05260463]
[1741669882297,2.1177,122.33,122.24,36.78]
[1741669883503,0.05258774,122.3,122.27,0.05868904]
[1741669883706,8.1822,122.26,122.23,36.7]
[1741669883906,35.09846749,122.28,122.2,44.9453]
[1741669884798,0.0561813,122.25,122.2,44.9453]
[1741669885004,0.0561813,122.25,122.23,0.05580553]
[1741669886905,2.1177,122.33,122.27,8.1803]
[1741669887104,26.52,122.34,122.28,36.82]
[1741669887312,26.52,122.34,122.29,36.8]
[1741669887603,26.52,122.34,122.31,8.1778]
[1741669887797,26.52,122.34,122.29,36.8]
[1741669887999,26.52,122.34,122.26,35.09846749]
[1741669888302,0.05172291,122.33,122.3,0.05949505]
[1741669889401,0.05172291,122.33,122.31,36.78]
[1741669890204,26.52,122.34,122.31,36.78]
[1741669890410,2.1835,122.41,122.31,71.87846749]
[1741669890708,37.48876749,122.44,122.31,71.87846749]
[1741669891110,35.09846749,122.41,122.31,36.78]
[1741669891610,36.74,122.43,122.35,0.0525923]
[1741669891812,35.09846749,122.41,122.35,36.84]
[1741669892108,35.09846749,122.41,122.38,0.06126746]
[1741669893112,43.27046749,122.41,122.38,0.06126746]
[1741669893411,35.09846749,122.41,122.35,36.84]
[1741669893613,2.2783,122.4,122.29,35.09846749]
[1741669893814,2.2783,122.4,122.32,36.78]
[1741669894318,35.09846749,122.41,122.32,36.78]
[1741669894610,0.05406891,122.37,122.35,0.06265518]
[1741669894811,0.05406891,122.37,122.36,36.78]
[1741669895212,0.05406891,122.37,122.36,44.9548]
[1741669895708,0.05406891,122.37,122.36,36.78]
[1741669902418,0.05406891,122.37,122.36,44.9548]
[1741669903013,24.62,122.4,122.39,8.1728]
[1741669903716,24.62,122.4,122.36,36.78]
[1741669904310,24.62,122.4,122.37,0.05314227]
[1741669904511,20.8605,122.4,122.38,36.5]
[1741669904919,20.8605,122.4,122.39,8.1728]
[1741669905112,12.685,122.4,122.39,8.1728]
[1741669906719,2.4003,122.48,122.38,36.5]
[1741669906922,2.5012,122.47,122.38,36.5]
[1741669907219,2.5012,122.47,122.42,0.05524023]
[1741669907522,2.5012,122.47,122.42,36.49524023]
[1741669907923,2.5012,122.47,122.43,8.1697]
[1741669908123,35.09846749,122.49,122.42,36.49524023]
[1741669908522,7.0199,122.53,122.42,36.44]
[1741669908825,8.1644,122.52,122.44,0.06108591]
[1741669909015,8.1644,122.52,122.42,36.44]
[1741669909218,35.09846749,122.58,122.46,0.06115659]
[1741669909521,21.96,122.51,122.47,36.62]
[1741669909826,8.1682,122.46,122.4,36.7]
[1741669910123,35.09846749,122.49,122.42,0.06225793]
[1741669910316,43.724,122.5,122.42,0.06225793]
[1741669910521,35.09846749,122.49,122.4,36.7]
[1741669910816,35.09846749,122.49,122.45,0.05186142]
[1741669911021,35.09846749,122.49,122.4,36.7]
[1741669911319,0.05900722,122.48,122.4,36.7]
[1741669911722,71.83846749,122.49,122.4,36.7]
[1741669912119,0.05936166,122.46,122.43,0.06023998]
[1741669912523,8.22816166,122.46,122.43,0.06023998]
[1741669912726,0.05936166,122.46,122.43,0.06023998]
[1741669913320,8.1689,122.45,122.43,0.06023998]
[1741669913516,0.05936166,122.46,122.43,0.06023998]
[1741669913722,8.1695,122.44,122.43,3.998e-05]
[1741669915126,10.469,122.44,122.43,3.998e-05]
[1741669915625,2.2995,122.44,122.43,3.998e-05]
[1741669915920,0.05936166,122.46,122.43,3.998e-05]
[1741669919131,36.53936166,122.46,122.43,3.998e-05]
[1741669919825,8.1695,122.44,122.43,3.998e-05]
[1741669920032,43.26796749,122.44,122.43,3.998e-05]
[1741669920420,8.1732,122.39,122.35,36.44]
[1741669920624,7.2201,122.43,122.35,36.44]
[1741669920825,71.61846749,122.5,122.41,8.1714]
[1741669921027,7.2201,122.49,122.4,36.52]
[1741669921227,35.09846749,122.47,122.4,36.52]
[1741669921731,0.06224603,122.45,122.42,0.05798149]
[1741669922127,8.17,122.44,122.42,0.05798149]
[1741669922324,0.06224603,122.45,122.42,0.05798149]
[1741669922727,8.1702,122.43,122.42,0.05798149]
[1741669923125,0.06224603,122.45,122.37,36.54]
[1741669923429,71.61846749,122.47,122.37,36.52]
[1741669923931,71.61846749,122.47,122.36,36.48]
[1741669924425,0.06239901,122.43,122.4,0.05235863]
[1741669925331,8.1715,122.41,122.4,0.05235863]
[1741669925533,0.06239901,122.43,122.4,0.05235863]
[1741669925828,8.1712,122.42,122.4,0.05235863]
[1741669926132,0.06239901,122.43,122.4,0.05235863]
[1741669927530,8.171,122.42,122.4,0.05235863]
[1741669927727,2.33939901,122.43,122.4,0.05235863]
[1741669928334,4.72929901,122.43,122.4,0.05235863]
[1741669929121,12.89979901,122.43,122.4,0.05235863]
[1741669929321,4.72929901,122.43,122.4,0.05235863]
[1741669929735,0.06239901,122.43,122.4,36.73235863]
[1741669929927,0.1178,122.44,122.43,8.1702]
[1741669930233,8.1636,122.53,122.43,269.52]
[1741669930432,7.4545,122.56,122.48,8.1664]
[1741669930627,7.4545,122.56,122.49,36.68]
[1741669930823,35.09846749,122.58,122.49,36.68]
[1741669931033,0.05583048,122.53,122.5,0.0530339]
[1741669931230,3.048e-05,122.53,122.51,35.09846749]
[1741669931425,3.048e-05,122.53,122.52,8.1642]
[1741669931728,3.048e-05,122.53,122.51,36.72]
[1741669932329,3.048e-05,122.53,122.51,39.16]
[1741669932627,3.048e-05,122.53,122.52,8.1642]
[1741669933034,3.048e-05,122.53,122.52,10.6042]
[1741669933635,3.048e-05,122.54,122.53,8.1635]
[1741669934237,3.048e-05,122.54,122.53,10.6035]
[1741669934429,3.048e-05,122.54,122.51,71.81846749]
[1741669934633,3.048e-05,122.54,122.51,79.98276749]
[1741669934936,0.0598237,122.54,122.5,227.6130339]
[1741669935637,0.0598237,122.54,122.52,8.1636]
[1741669935936,0.0598237,122.54,122.5,227.6130339]
[1741669936335,0.0598237,122.54,122.53,8.1635]
[1741669937237,2.37e-05,122.54,122.53,8.1635]
[1741669937931,2.37e-05,122.54,122.53,10.6035]
[1741669938628,35.09846749,122.71,122.53,2.44]
[1741669938831,35.09846749,122.71,122.59,35.09846749]
[1741669939035,35.09846749,122.71,122.6,40.88]
[1741669939429,35.09846749,122.74,122.6,40.88]
[1741669939635,12.94,122.7,122.62,35.09846749]
[1741669939938,12.94,122.7,122.66,0.05276255]
[1741669940234,12.94,122.7,122.67,40.8]
[1741669942033,12.94,122.7,122.69,8.1529]
[1741669942233,0.0001,122.7,122.69,8.1529]
[1741669942434,0.0001,122.7,122.69,10.5929]
[1741669942640,0.0001,122.7,122.69,45.69136749]
[1741669942831,1.03751861,122.8,122.69,37.53846749]
[1741669943037,1.03751861,122.8,122.69,35.09846749]
[1741669943348,1.03751861,122.8,122.73,0.06285804]
[1741669943639,1.03751861,122.8,122.74,41.2]
[1741669943837,42.51745754,122.89,122.74,41.2]
[1741669943838,89.18710786,122.92,122.74,41.2]
[1741669944044,11.10982827,122.9,122.84,35.09846749]
[1741669944344,33.66180418,122.91,122.85,44.7]
[1741669944345,31.50983245,122.91,122.85,44.7]
[1741669944738,31.50983245,122.91,122.87,0.05452887]
[1741669945440,2.305,122.92,122.87,0.05452887]
[1741669945741,8.1396,122.89,122.81,44.88]
[1741669945933,2.4379,122.88,122.79,8.1461]
[1741669946131,2.4379,122.88,122.78,235.88]
[1741669946431,2.305,122.92,122.81,35.09846749]
[1741669946633,2.3668,122.94,122.87,8.1408]
[1741669946832,2.3668,122.94,122.88,44.96]
[1741669947036,2.3668,122.94,122.85,0.06149227]
[1741669947244,35.09846749,122.91,122.81,44.96]
[1741669947446,35.09846749,122.88,122.78,45.0]
[1741669947742,47.3349,122.87,122.75,1.6293279]
[1741669947940,0.05134243,122.84,122.75,44.98]
[1741669948543,35.09846749,122.96,122.83,43.24136749]
[1741669948739,35.09846749,122.96,122.84,46.98]
[1741669949145,2.3549,122.97,122.86,35.09846749]
[1741669949643,2.3549,122.97,122.86,43.23936749]
[1741669949843,194.0,123.05,122.84,82.07846749]
[1741669950144,317.22,123.06,122.77,218.74360701]
[1741669950145,35.09846749,122.95,122.83,48.64]
[1741669950439,4.7131,122.94,122.84,48.72]
[1741669950651,4.7131,122.94,122.86,35.09846749]
[1741669950843,2.3582,122.94,122.9,8.1389]
[1741669951039,2.3582,122.94,122.91,50.08]
[1741669951346,4.9873,122.98,122.91,50.08]
[1741669951539,7.3455,122.98,122.91,50.08]
[1741669952045,7.3455,122.98,122.93,0.05217712]
[1741669952643,7.3455,122.98,122.93,8.18857712]
[1741669952839,7.3455,122.98,122.93,0.05217712]
[1741669953246,8.1356,122.96,122.93,0.05217712]
[1741669953446,35.09846749,122.96,122.88,51.16]
[1741669953649,35.09846749,122.96,122.84,51.14]
[1741669953847,35.09846749,122.93,122.84,51.14]
[1741669954146,51.16,122.95,122.84,51.14]
[1741669954147,35.09846749,122.94,122.84,51.14]
[1741669954347,35.09846749,122.91,122.84,51.14]
[1741669954548,4.6883,122.9,122.84,51.14]
[1741669954741,0.05631407,122.89,122.86,0.05256688]
[1741669955046,0.05631407,122.89,122.81,51.66]
[1741669955549,4.6883,122.9,122.81,51.66]
[1741669955736,8.1416,122.86,122.81,51.66]
[1741669956038,4.6883,122.9,122.81,51.66]
[1741669956342,0.051806,122.85,122.82,0.05497816]
[1741669956743,0.051806,122.85,122.81,51.66]
[1741669956942,0.051806,122.85,122.82,0.05547355]
[1741669957348,0.051806,122.85,122.77,117.74360701]
[1741669957548,8.1443,122.82,122.78,51.86]
[1741669957747,35.09846749,122.85,122.78,51.86]
[1741669958151,8.1455,122.81,122.78,51.86]
[1741669958353,8.1455,122.81,122.75,268.6]
[1741669958549,86.73846749,122.85,122.76,51.64]
[1741669958750,0.05518105,122.81,122.78,0.05153121]
[1741669959145,0.05518105,122.81,122.78,51.55153121]
[1741669959550,8.1458,122.8,122.78,0.05153121]
[1741669959859,0.05518105,122.81,122.78,35.1499987]
[1741669960251,2.3558,122.88,122.78,72.68846619]
[1741669960549,2.3558,122.88,122.81,35.09846749]
[1741669960748,2.3558,122.88,122.85,8.1417]
[1741669960946,2.3558,122.88,122.82,55.08]
[1741669961146,2.3558,122.88,122.84,8.1422]
[1741669961347,2.3558,122.88,122.82,55.08]
[1741669961651,4.6883,122.9,122.84,0.06037856]
[1741669963055,0.05595149,122.88,122.84,0.06037856]
[1741669963447,0.05595149,122.88,122.81,63.2044]
[1741669963749,35.09846749,122.89,122.75,228.57506749]
[1741669963957,35.09846749,122.86,122.76,55.08]
[1741669964459,8.1436,122.83,122.77,8.1471]
[1741669964651,8.1436,122.83,122.76,55.08]
[1741669964849,35.09846749,122.86,122.76,55.08]
[1741669965055,0.05803338,122.81,122.78,0.06047484]
[1741669965456,0.05803338,122.81,122.76,55.08]
[1741669965952,0.05803338,122.81,122.78,0.0611943]
[1741669966956,0.05803338,122.81,122.78,54.9411943]
[1741669967158,8.1459,122.8,122.78,54.9411943]
[1741669967452,0.05803338,122.81,122.72,2.4766]
[1741669967661,0.05803338,122.81,121.37,77.21097187]
[1741669967662,8.1498,122.74,122.69,92.19553582]
[1741669967852,55.14,122.79,122.69,119.14160331]
[1741669968251,35.09846749,122.77,122.7,126.06470374]
[1741669968448,35.03600019,122.77,122.7,126.06470374]
[1741669968659,35.09846749,122.73,122.7,110.90730374]
[1741669968859,92.93846749,122.73,122.72,7.346e-05]
[1741669969057,90.49846749,122.73,122.7,93.84460374]
[1741669969261,8.1515,122.71,122.7,1e-08]
[1741669969467,90.49846749,122.73,122.69,213.71707579]
[1741669969657,90.49846749,122.73,122.64,86.05671274]
[1741669970054,35.09846749,122.7,122.64,86.05671274]
[1741669970362,35.1596828,122.7,122.67,0.06097489]
[1741669970560,8.1536,122.68,122.67,0.06097489]
[1741669971360,2.44,122.68,122.67,0.06097489]
[1741669971563,35.1596828,122.7,122.67,0.06097489]
[1741669971767,92.6196828,122.7,122.67,7.489e-05]
[1741669972265,8.1535,122.68,122.67,7.489e-05]
[1741669972662,2.44,122.68,122.58,2.668]
[1741669972868,35.09846749,122.67,122.58,2.668]
[1741669973071,8.155,122.66,122.59,10.6598]
[1741669973275,35.09846749,122.71,122.59,2.5008]
[1741669973574,8.1536,122.68,122.62,8.157]
[1741669973872,55.36,122.7,122.59,2.5008]
[1741669974072,0.05673346,122.66,122.64,0.05949965]
[1741669974769,8.1555,122.65,122.64,0.05949965]
[1741669975771,8.157,122.63,122.59,2.5008]
[1741669976071,90.17846749,122.65,122.56,8.1614]
[1741669976372,90.17846749,122.65,122.54,268.88]
[1741669976574,90.17846749,122.65,122.57,8.1603]
[1741669977077,8.21213106,122.62,122.6,0.06081174]
[1741669977574,8.1582,122.61,122.6,0.06081174]
[1741669978173,8.1595,122.6,122.55,8.1619]
[1741669978373,8.1595,122.6,122.54,268.88]
[1741669978771,8.1597,122.59,122.54,268.88]
[1741669979076,22.25,122.68,122.58,35.09846749]
[1741669979272,22.25,122.68,122.59,56.3]
[1741669979479,22.25,122.68,122.6,2.3885]
[1741669979679,0.05454581,122.65,122.6,2.3885]
[1741669979872,0.05454581,122.65,122.63,0.05178892]
[1741669981072,22.25,122.68,122.63,0.05178892]
[1741669981276,22.25,122.68,122.65,8.1554]
[1741669981478,22.25,122.68,122.64,56.34]
[1741669982275,0.05408186,122.67,122.64,56.34]
[1741669984084,0.05408186,122.67,122.66,8.1548]
[1741669984583,22.25,122.68,122.64,56.34]
[1741669984782,22.25,122.68,122.67,8.1542]
[1741669985183,22.25,122.68,122.66,8.1547]
[1741669985385,22.25,122.68,122.64,56.34]
[1741669985680,22.25,122.68,122.66,8.1548]
[1741669985880,0.0542688,122.67,122.65,0.05586278]
[1741669986279,0.0542688,122.67,122.65,8.21126278]
[1741669987283,0.0542688,122.67,122.65,0.05586278]
[1741669987878,0.0542688,122.67,122.65,8.21076278]
[1741669988687,22.25,122.68,122.67,8.1542]
[1741669988887,0.23,122.72,122.65,0.05586278]
[1741669989379,8.1515,122.71,122.67,8.1541]
[1741669989577,0.23,122.72,122.66,35.09846749]
[1741669989781,8.1518,122.71,122.67,8.154]
[1741669990079,0.05336424,122.7,122.68,0.06169326]
[1741669990486,8.1529,122.69,122.68,0.06169326]
[1741669990683,0.05336424,122.7,122.68,0.06169326]
[1741669990875,8.1529,122.69,122.68,0.06169326]
[1741669992983,0.05336424,122.7,122.62,8.1573]
[1741669993185,0.05336424,122.7,122.61,5.5793]
[1741669993481,2.8641,122.73,122.64,35.09846749]
[1741669993689,40.97966749,122.73,122.61,40.67776749]
[1741669994083,8.1527,122.7,122.62,2.9087]
[1741669994286,0.05700319,122.68,122.66,8.21487063]
[1741669994490,0.05700319,122.68,122.66,0.06027063]
[1741669994788,3.0171,122.73,122.66,0.06027063]
[1741669994989,0.06161653,122.68,122.66,0.06027063]
[1741669995190,3.0171,122.73,122.66,0.06027063]
[1741669995391,0.05468059,122.68,122.66,0.06027063]
[1741669995683,3.0171,122.73,122.66,0.06027063]
[1741669995883,0.05567193,122.68,122.66,0.06027063]
[1741669996088,3.0171,122.73,122.66,0.06027063]
[1741669996290,0.05688644,122.68,122.66,0.06027063]
[1741669996489,8.1513,122.72,122.66,0.06027063]
[1741669996685,8.1513,122.72,122.65,54.52]
[1741669997091,8.1513,122.72,122.67,8.1541]
[1741669997291,8.1504,122.73,122.65,54.52]
[1741669997491,8.1504,122.73,122.7,8.1521]
[1741669997888,0.05398755,122.73,122.7,53.84]
[1741669998089,3.012,122.8,122.74,8.1495]
[1741669998286,8.1464,122.79,122.71,5.7263]
[1741669998482,2.9567,122.83,122.73,35.09846749]
[1741669998688,38.11046749,122.84,122.77,8.1472]
[1741669998990,38.11046749,122.84,122.77,53.62]
[1741669999191,0.06089179,122.82,122.79,0.06048716]
[1741670001688,8.1456,122.8,122.79,0.06048716]
[1741670002194,8.1456,122.8,122.79,8.716e-05]
[1741670006293,35.09846749,122.92,122.79,93.87855465]
[1741670006593,35.09846749,122.92,122.84,8.1429]